bitfinex-derivatives/quotes_ETHF0:USTF0_20250803
["timestamp","ask_amount","ask_price","bid_price","bid_amount"]
[1754252244392,0.7173,3489.2,3489.1,1.7907]
[1754252244594,1.1715,3489.5,3489.4,0.4112]
[1754252244994,1.4943,3489.5,3489.4,0.4112]
[1754252245197,2.61057242,3489.5,3489.4,0.4112]
[1754252245391,1.8058,3489.5,3489.4,0.4112]
[1754252247101,1.8058,3489.5,3489.4,1.7907]
[1754252255002,0.4221,3489.2,3488.9,0.88795]
[1754252255305,1.8058,3489.0,3488.9,1.60465]
[1754252255705,1.8058,3489.0,3488.9,2.36395]
[1754252256100,1.8058,3489.0,3488.9,0.197]
[1754252256303,1.8058,3488.8,3488.7,0.57327]
[1754252256903,0.2135,3488.4,3488.3,0.197]
[1754252257099,0.7173,3488.4,3488.3,0.197]
[1754252257598,1.8058,3488.4,3488.3,0.197]
[1754252258402,1.8058,3488.4,3488.3,0.4112]
[1754252258705,1.8058,3488.4,3488.3,1.0314]
[1754252259807,1.8058,3488.4,3488.3,1.4902]
[1754252261507,1.8058,3488.4,3488.3,1.0314]
[1754252262011,1.8058,3488.4,3488.3,1.7907]
[1754252266312,3.9331,3488.8,3488.7,1.92898]
[1754252266512,1.2012,3488.8,3488.7,2.38638]
[1754252267314,1.847,3488.8,3488.7,2.38638]
[1754252269714,1.847,3488.8,3488.7,0.57328]
[1754252270022,1.847,3488.5,3488.4,0.57332]
[1754252270509,1.5486,3488.4,3488.2,0.57336]
[1754252270708,1.847,3488.3,3488.2,0.79096]
[1754252271120,1.847,3488.3,3488.2,2.06746]
[1754252271312,1.847,3488.3,3488.2,2.38646]
[1754252272810,0.7253,3488.3,3488.1,0.57337]
[1754252273017,1.847,3487.6,3487.5,2.38657]
[1754252273218,1.847,3487.6,3487.5,2.07977]
[1754252273512,0.7253,3487.6,3487.5,2.38657]
[1754252274116,0.5145,3487.6,3487.5,2.38657]
[1754252274421,0.7978,3487.8,3487.7,1.10735]
[1754252274613,0.3239,3487.9,3487.7,5.60784861]
[1754252274815,0.3239,3487.9,3487.8,1.8131]
[1754252275012,0.8384,3487.9,3487.8,1.8131]
[1754252275217,1.5251,3487.9,3487.8,1.8131]
[1754252275417,1.847,3487.9,3487.8,1.8131]
[1754252276314,5.0548,3488.3,3488.2,0.57336]
[1754252276521,1.847,3488.3,3488.2,2.38646]
[1754252278621,0.7253,3488.1,3488.0,1.00589]
[1754252278826,1.847,3488.1,3488.0,2.06749]
[1754252279123,1.847,3488.1,3488.0,2.38649]
[1754252285129,1.0472,3487.8,3487.7,0.57344]
[1754252285433,1.847,3487.8,3487.7,0.57344]
[1754252285930,1.847,3487.8,3487.7,0.79104]
[1754252286135,1.847,3487.8,3487.7,1.61014]
[1754252286528,1.847,3487.8,3487.7,2.06754]
[1754252287532,5.0548,3488.3,3488.2,0.57336]
[1754252287832,1.847,3488.6,3488.5,2.38641]
[1754252288534,0.5145,3488.6,3488.5,5.60770861]
[1754252288734,1.1217,3488.9,3488.5,5.60770861]
[1754252288735,1.847,3488.9,3488.8,1.32477]
[1754252288933,1.847,3488.9,3488.8,2.38637]
[1754252289931,1.847,3488.9,3488.8,1.8131]
[1754252290135,1.847,3488.9,3488.8,0.4325]
[1754252290335,2.65244039,3488.9,3488.8,0.4325]
[1754252290638,1.847,3488.9,3488.8,0.4325]
[1754252291136,0.7253,3488.9,3488.5,1.63491]
[1754252291335,1.847,3488.6,3488.5,1.39511]
[1754252291736,1.847,3488.6,3488.5,2.38641]
[1754252291929,1.847,3489.0,3488.9,1.78214]
[1754252292333,1.847,3489.0,3488.9,1.2089]
[1754252292641,1.847,3489.0,3488.9,1.8131]
[1754252295337,1.3579,3489.0,3488.8,0.57326]
[1754252295547,1.0863,3488.7,3488.6,0.57329]
[1754252295737,1.8073,3488.7,3488.6,0.57329]
[1754252296135,1.8073,3488.7,3488.4,0.609]
[1754252296136,1.0863,3488.6,3488.4,0.57333]
[1754252296336,1.8073,3488.5,3488.4,0.57333]
[1754252298138,0.6326,3488.4,3488.3,0.57334]
[1754252298334,1.8073,3488.4,3488.3,0.57334]
[1754252298741,1.8073,3488.4,3488.3,0.78844]
[1754252300138,1.8073,3488.4,3488.3,0.98664]
[1754252300339,1.8073,3488.4,3488.3,2.36684]
[1754252301740,1.8073,3488.4,3488.3,5.57464]
[1754252303247,1.8073,3488.4,3488.3,2.36684]
[1754252307441,19.8394,3489.0,3488.9,0.4133]
[1754252307646,21.4443,3489.0,3488.9,1.7935]
[1754252311840,1.8073,3489.0,3488.9,1.7935]
[1754252312040,3.7164,3489.2,3489.1,1.7935]
[1754252312253,1.31461011,3489.2,3489.1,1.7935]
[1754252312452,0.80601011,3489.2,3489.1,1.7935]
[1754252312654,1.31461011,3489.2,3489.1,1.7935]
[1754252312948,2.30551011,3489.2,3489.1,1.7935]
[1754252313254,1.1747,3489.2,3489.1,1.7935]
[1754252315548,1.8073,3489.2,3489.1,1.7935]
[1754252318249,21.4413,3489.2,3489.1,1.7935]
[1754252320056,20.8087,3489.2,3489.1,1.7935]
[1754252320559,20.8077,3489.2,3489.1,1.7935]
[1754252321063,21.4403,3489.2,3489.1,1.7935]
[1754252322261,20.8077,3489.2,3489.1,1.7935]
[1754252323164,4.3825,3489.6,3489.5,1.7935]
[1754252323470,24.0145,3489.6,3489.5,1.7935]
[1754252323660,21.4393,3489.6,3489.5,1.7935]
[1754252323866,21.4393,3489.6,3489.5,2.36665]
[1754252324950,21.4393,3489.6,3489.5,1.7935]
[1754252325850,21.4389,3489.6,3489.5,1.7953]
[1754252331361,21.4389,3489.6,3489.5,1.3218]
[1754252331564,21.4389,3489.6,3489.5,1.0241]
[1754252333266,21.4389,3489.6,3489.5,1.8063]
[1754252333567,22.8348,3489.7,3489.6,2.39684]
[1754252333767,19.627,3489.7,3489.6,2.39684]
[1754252334265,3.8392,3490.1,3490.0,1.5008]
[1754252334464,24.6368,3490.1,3490.0,1.8237]
[1754252334861,23.3538,3490.1,3490.0,1.8237]
[1754252335061,24.6368,3490.1,3490.0,1.8237]
[1754252338478,24.6358,3490.1,3490.0,1.8237]
[1754252345674,24.6328,3490.1,3490.0,1.8237]
[1754252346171,24.6328,3490.1,3490.0,1.5008]
[1754252346367,3.2078,3490.1,3490.0,1.8237]
[1754252346573,24.1097,3490.1,3490.0,1.8237]
[1754252346768,24.6318,3490.1,3490.0,1.8237]
[1754252348876,24.6318,3490.1,3490.0,1.0415]
[1754252349174,24.6318,3490.1,3490.0,0.4088]
[1754252349770,24.6318,3490.1,3490.0,1.5008]
[1754252349967,24.6318,3490.1,3489.5,0.57315]
[1754252350169,0.57313,3489.6,3489.2,0.5732]
[1754252350372,1.803,3489.3,3489.2,2.3969]
[1754252352280,0.6243,3488.8,3488.6,3.2078]
[1754252352472,0.7704,3489.0,3488.4,0.57333]
[1754252352473,0.7252,3488.7,3488.4,0.57333]
[1754252352680,1.803,3488.5,3488.4,0.57333]
[1754252352868,1.803,3488.5,3488.4,2.08453]
[1754252353072,1.803,3488.5,3488.4,2.39703]
[1754252357574,1.803,3488.5,3488.4,0.98213]
[1754252357777,1.7817,3487.9,3487.8,5.61343]
[1754252357979,1.7817,3487.9,3487.8,2.40563]
[1754252361585,1.1613,3487.9,3487.8,2.40563]
[1754252361785,0.7104,3487.9,3487.8,2.40563]
[1754252362687,0.4955,3487.9,3487.8,2.40563]
[1754252364682,4.6913,3488.5,3488.4,2.09573]
[1754252364885,0.7104,3488.5,3488.4,5.62682861]
[1754252365079,3.2078,3489.0,3488.4,5.62682861]
[1754252365080,4.6913,3489.0,3488.9,1.31795]
[1754252365285,1.7817,3489.0,3488.9,2.40545]
[1754252366088,1.7817,3489.0,3488.9,1.8322]
[1754252366288,1.7817,3489.0,3488.9,0.43]
[1754252366585,1.0713,3488.9,3488.8,0.57326]
[1754252366788,1.7817,3488.9,3488.8,0.57326]
[1754252367186,1.7817,3488.9,3488.8,0.78866]
[1754252367687,1.7817,3488.9,3488.8,1.00326]
[1754252367990,1.7817,3488.9,3488.8,2.09076]
[1754252368992,1.7817,3488.9,3488.8,1.5175]
[1754252369193,1.7817,3488.9,3488.8,1.8322]
[1754252375694,21.4007,3488.9,3488.8,1.8322]
[1754252376590,21.4007,3488.9,3488.5,0.5733]
[1754252376591,0.7104,3488.6,3488.5,0.5733]
[1754252376791,1.7817,3488.6,3488.5,0.7887]
[1754252377093,1.7817,3488.6,3488.5,2.4055]
[1754252381085,19.619,3488.9,3488.2,3.2078]
[1754252381086,1.19372,3488.5,3488.2,3.2078]
[1754252381287,0.7104,3487.9,3487.8,5.04]
[1754252381594,1.7817,3487.9,3487.8,5.04]
[1754252382192,1.7817,3487.9,3487.8,5.61343]
[1754252382794,1.0713,3488.2,3488.1,0.57338]
[1754252382997,1.7817,3488.2,3488.1,1.31808]
[1754252383191,1.7817,3488.2,3488.1,2.40558]
[1754252386995,1.7817,3488.2,3488.1,0.57338]
[1754252387197,1.0861,3488.1,3487.9,1.70081]
[1754252387500,1.8205,3488.0,3487.9,2.10891]
[1754252387701,1.8205,3488.0,3487.9,2.41921]
[1754252389999,1.8205,3488.0,3487.8,0.57343]
[1754252390202,1.0861,3487.9,3487.8,0.77273]
[1754252390500,1.8205,3487.9,3487.8,1.62103]
[1754252390696,3.2078,3488.2,3487.6,0.4879]
[1754252390697,0.8413,3487.7,3487.6,0.5191]
[1754252390903,1.8205,3487.7,3487.6,1.8458]
[1754252394597,0.7344,3487.7,3487.5,0.57348]
[1754252394805,1.8205,3487.6,3487.5,2.41928]
[1754252403406,3.2078,3487.8,3487.5,5.64057861]
[1754252403615,3.2078,3488.2,3488.1,2.41918]
[1754252403809,3.9422,3488.6,3488.5,2.4191]
[1754252404107,0.7344,3488.6,3488.5,2.4191]
[1754252404307,1.5002,3488.6,3488.5,2.4191]
[1754252404509,1.8205,3488.6,3488.5,2.4191]
[1754252404819,3.2078,3489.1,3488.9,2.41905]
[1754252405017,1.0547,3488.4,3488.3,1.93125]
[1754252405209,1.8205,3488.4,3488.3,2.41915]
[1754252405909,1.8205,3488.4,3488.3,0.57335]
[1754252406315,1.8205,3488.4,3488.3,2.41915]
[1754252407718,1.8205,3488.4,3488.2,3.78116]
[1754252407917,1.8205,3488.3,3488.2,3.78116]
[1754252408722,1.8205,3488.3,3488.2,3.2078]
[1754252408914,1.8205,3488.3,3487.9,0.57341]
[1754252409119,0.7344,3488.0,3487.9,0.77271]
[1754252409322,1.8205,3488.0,3487.9,2.10891]
[1754252410520,1.8205,3488.0,3487.9,2.41921]
[1754252415524,1.8205,3488.0,3487.9,0.98151]
[1754252415828,1.8205,3488.0,3487.9,2.38881]
[1754252417827,3.9286,3488.5,3488.4,1.30913]
[1754252418030,3.9286,3488.5,3488.4,2.39563]
[1754252418526,5.0452,3488.5,3488.4,2.39563]
[1754252420136,5.0452,3488.5,3488.4,1.8223]
[1754252425832,3.9286,3488.5,3488.2,0.57336]
[1754252426139,1.8374,3488.3,3488.2,0.57336]
[1754252426734,1.8374,3487.8,3487.7,5.60355]
[1754252435535,1.8374,3487.8,3487.7,2.39575]
[1754252435737,1.8374,3487.8,3487.7,1.8223]
[1754252446154,0.4531,3487.3,3487.1,0.57355]
[1754252446350,1.8039,3487.3,3487.2,1.4761]
[1754252446541,1.0785,3487.2,3486.9,1.60599088]
[1754252446848,1.8039,3487.0,3486.9,3.08209088]
[1754252447042,1.8039,3487.0,3486.9,3.39969088]
[1754252448255,3.2078,3487.5,3487.4,0.5735]
[1754252448447,3.2078,3487.5,3487.4,5.58849861]
[1754252448644,5.0117,3487.5,3487.4,2.3672]
[1754252450755,3.2078,3487.5,3487.4,5.58849861]
[1754252451252,3.7177,3487.5,3487.4,5.58849861]
[1754252451448,4.7962,3487.5,3487.4,5.58849861]
[1754252451642,3.2078,3487.5,3487.4,5.58849861]
[1754252453352,5.0117,3488.0,3487.9,1.30721]
[1754252453655,5.0117,3488.0,3487.9,2.36711]
[1754252454854,3.2078,3488.0,3487.9,2.36711]
[1754252455055,5.0117,3488.0,3487.9,2.36711]
[1754252455353,5.0117,3488.0,3487.9,2.04951]
[1754252455655,5.0117,3488.0,3487.9,0.57341]
[1754252455851,5.0117,3488.0,3487.9,2.36711]
[1754252457557,1.8039,3488.0,3487.9,2.36711]
[1754252458653,3.9332,3488.4,3488.3,2.36705]
[1754252458957,1.8039,3488.7,3488.6,2.367]
[1754252459164,3.2078,3489.2,3488.9,0.57325]
[1754252459453,3.2078,3489.7,3489.6,1.30694]
[1754252459654,1.02624,3489.6,3489.0,0.7606]
[1754252459860,1.8039,3489.1,3489.0,0.77623]
[1754252460155,0.4198,3488.5,3488.4,4.19733]
[1754252460457,1.0424,3488.5,3488.4,5.57483]
[1754252460756,0.7615,3488.7,3488.4,5.57483]
[1754252460957,3.2078,3489.3,3489.2,0.5732]
[1754252461258,4.87769303,3489.3,3489.2,0.203]
[1754252461551,1.8039,3489.2,3489.1,1.07551]
[1754252461757,1.8039,3489.2,3489.1,1.53611]
[1754252462153,0.7615,3489.1,3488.6,0.3]
[1754252462353,1.8039,3488.7,3488.6,0.7763]
[1754252464056,1.8039,3488.7,3488.6,1.0756]
[1754252464450,1.8039,3488.7,3488.6,0.7763]
[1754252464848,1.8039,3488.7,3488.6,1.0756]
[1754252465160,1.8039,3488.7,3488.6,0.7763]
[1754252466260,1.8039,3488.1,3488.0,1.094]
[1754252466755,1.8039,3487.7,3487.6,3.78126]
[1754252467456,0.2155,3487.2,3487.1,2.36725]
[1754252467655,0.4531,3487.4,3487.1,1.30735]
[1754252467961,0.7368,3487.3,3487.2,1.7937]
[1754252468150,1.0424,3487.3,3487.2,1.7937]
[1754252468756,1.4955,3487.3,3487.2,1.7937]
[1754252469264,1.0424,3487.3,3487.2,1.7937]
[1754252469559,0.2155,3487.3,3487.2,1.7937]
[1754252469763,3.2078,3487.7,3487.6,1.7937]
[1754252469764,1.4955,3487.7,3487.6,1.7937]
[1754252470062,1.8039,3487.7,3487.6,1.7937]
[1754252470961,1.8039,3487.7,3487.6,2.36716]
[1754252471765,1.8039,3487.7,3487.6,1.07576]
[1754252472256,1.8039,3487.7,3487.6,1.53636]
[1754252472660,1.8039,3487.7,3487.6,1.85396]
[1754252472864,1.8039,3487.7,3487.6,2.06716]
[1754252473156,1.8039,3487.7,3487.6,2.36716]
[1754252474558,3.2078,3488.2,3488.0,0.57338]
[1754252474863,1.8072,3488.1,3488.0,2.33608]
[1754252485464,1.8072,3488.1,3488.0,1.7627]
[1754252485660,1.8072,3488.1,3488.0,1.4568]
[1754252485964,1.8072,3487.9,3487.8,0.57343]
[1754252486159,1.8072,3487.9,3487.8,0.77363]
[1754252486356,1.8072,3487.9,3487.8,1.52143]
[1754252486564,1.8072,3487.9,3487.8,2.12333]
[1754252486860,1.8072,3487.9,3487.4,3.9619]
[1754252487058,1.8072,3487.9,3486.3,44.83453949]
[1754252487059,0.2085,3487.4,3487.3,0.57351]
[1754252487260,1.8072,3487.4,3487.3,0.77371]
[1754252487656,1.8072,3487.4,3487.3,1.52151]
[1754252487860,1.8072,3487.4,3487.3,1.81751]
[1754252488061,1.8072,3487.4,3487.3,2.33621]
[1754252491469,1.8072,3487.4,3487.3,1.07331]
[1754252492372,1.8072,3487.4,3487.3,1.52151]
[1754252492668,1.8072,3487.4,3487.3,1.81751]
[1754252493059,1.8072,3487.4,3487.3,2.33621]
[1754252499272,1.8072,3487.4,3487.3,0.4962]
[1754252499472,1.4944,3487.1,3487.0,1.52156]
[1754252499670,1.8072,3487.1,3487.0,1.52156]
[1754252499866,1.8072,3487.1,3487.0,1.81756]
[1754252500070,1.8072,3487.1,3487.0,2.12346]
[1754252500476,1.8072,3487.1,3487.0,2.33626]
[1754252501169,1.4944,3487.1,3487.0,2.33626]
[1754252501768,1.0385,3487.1,3487.0,2.33626]
[1754252503076,1.0385,3487.1,3487.0,5.54406]
[1754252503479,1.0816,3487.3,3487.0,4.49036]
[1754252503775,1.8093,3487.7,3487.6,0.7075]
[1754252503979,1.8093,3487.7,3487.6,1.8298]
[1754252504278,1.8093,3487.7,3487.6,1.506]
[1754252506580,1.8093,3487.7,3487.6,1.8298]
[1754252508678,0.722,3487.7,3487.5,0.57347]
[1754252508879,1.8093,3487.6,3487.5,0.57347]
[1754252509882,1.8093,3487.6,3487.5,0.77177]
[1754252510977,1.8093,3487.6,3487.5,1.09907]
[1754252511177,1.8093,3487.6,3487.5,1.57027]
[1754252511385,1.8093,3487.6,3487.5,1.09907]
[1754252511782,1.8093,3487.6,3487.5,1.57027]
[1754252513179,1.8093,3487.6,3487.5,2.40327]
[1754252517585,1.8093,3487.5,3487.4,0.57349]
[1754252517785,1.8093,3487.5,3487.4,1.09909]
[1754252517984,1.8093,3487.5,3487.4,1.57029]
[1754252518188,1.8093,3487.5,3487.4,2.40329]
[1754252518892,3.7231,3487.8,3487.7,1.6278]
[1754252519192,3.9298,3487.8,3487.7,1.8298]
[1754252519393,5.0171,3487.8,3487.7,1.8298]
[1754252520991,4.2308,3487.8,3487.7,1.506]
[1754252521186,1.02363267,3488.5,3488.2,0.3238]
[1754252521388,0.80528307,3488.4,3488.3,1.8298]
[1754252522496,5.59185507,3488.4,3488.3,1.8298]
[1754252522692,4.39005507,3488.4,3488.3,1.8298]
[1754252522896,3.584772,3488.4,3488.3,1.8298]
[1754252524996,3.584772,3488.4,3488.3,5.0376]
[1754252525689,3.885772,3488.4,3488.3,5.0376]
[1754252525896,5.394072,3488.4,3488.3,5.0376]
[1754252526194,5.394072,3488.4,3488.3,1.8298]
[1754252527395,5.093072,3488.4,3488.2,0.57337]
[1754252527595,1.8093,3488.3,3488.2,0.57337]
[1754252529701,3.584772,3488.4,3487.4,0.7718]
[1754252529702,1.023,3487.5,3487.4,0.7718]
[1754252529901,1.8093,3487.5,3487.4,2.4033]
[1754252530204,1.5127,3487.5,3487.4,5.6111]
[1754252530498,5.097472,3487.5,3487.4,5.6111]
[1754252530695,5.394072,3487.5,3487.4,5.6111]
[1754252532000,5.394072,3487.5,3487.4,3.7813]
[1754252532204,5.394072,3487.5,3487.4,0.5735]
[1754252532399,5.394072,3487.5,3487.4,0.7718]
[1754252532597,5.394072,3487.5,3487.4,0.5735]
[1754252533503,5.394072,3487.5,3487.4,2.2013]
[1754252533708,5.394072,3487.5,3487.4,2.4033]
[1754252535209,5.394072,3487.5,3487.4,2.0795]
[1754252535904,5.394072,3487.5,3487.4,2.4024]
[1754252538212,5.394072,3487.5,3487.4,1.8775]
[1754252538405,5.394072,3487.5,3487.4,2.4118]
[1754252538915,5.394072,3487.5,3487.4,0.5735]
[1754252540011,5.394072,3487.5,3487.4,0.7908]
[1754252540210,5.394072,3487.5,3487.4,1.1091]
[1754252540514,5.394072,3487.5,3487.4,2.4418]
[1754252543316,3.791472,3487.5,3487.4,2.4418]
[1754252543613,3.584772,3487.5,3487.4,2.4418]
[1754252544014,3.891872,3487.5,3487.4,2.4418]
[1754252544616,4.745572,3487.5,3487.4,2.4418]
[1754252546109,5.354272,3487.5,3487.4,2.4418]
[1754252546311,4.600472,3487.5,3487.4,2.4418]
[1754252546714,5.354272,3487.5,3487.4,2.4418]
[1754252548519,3.584772,3487.5,3487.4,2.4418]
[1754252549413,2.940912,3487.5,3487.4,5.6496]
[1754252549810,2.360932,3487.5,3487.4,5.6496]
[1754252550009,1.748762,3487.5,3487.4,5.6496]
[1754252550915,3.518262,3487.5,3487.4,0.5735]
[1754252552012,3.518262,3487.5,3487.4,1.1091]
[1754252552813,1.748762,3487.5,3487.4,8.87089861]
[1754252554413,3.069962,3487.5,3487.4,3.9986]
[1754252554613,3.518262,3487.5,3487.4,3.9986]
[1754252554911,3.518262,3487.5,3487.4,0.7908]
[1754252555412,3.518262,3487.5,3487.4,1.1091]
[1754252555618,3.518262,3487.5,3487.4,1.5885]
[1754252556019,3.518262,3487.5,3487.4,0.7908]
[1754252557120,3.518262,3487.5,3487.4,1.1091]
[1754252557325,3.518262,3487.5,3487.4,1.5885]
[1754252558020,3.518262,3487.5,3487.4,0.5735]
[1754252558623,1.0609,3487.4,3487.2,0.57352]
[1754252558819,0.3055,3487.2,3487.1,0.57354]
[1754252559025,1.0609,3487.0,3486.9,1.03242088]
[1754252559226,1.7695,3487.0,3486.9,1.03242088]
[1754252560325,3.518262,3487.0,3486.9,1.03242088]
[1754252562526,3.518262,3487.0,3486.9,1.24972088]
[1754252563823,3.518262,3487.0,3486.9,1.55552088]
[1754252564520,3.518262,3487.0,3486.9,2.08592088]
[1754252564829,1.748762,3487.0,3486.9,9.29521949]
[1754252565222,2e-06,3487.0,3486.9,9.29521949]
[1754252565427,0.5366,3487.8,3487.7,0.4486]
[1754252565622,3.2078,3488.3,3488.2,0.57336]
[1754252565826,1.8372,3488.7,3488.6,1.02189]
[1754252566025,2.50226569,3488.7,3488.6,1.02189]
[1754252566329,2.32068651,3488.7,3488.6,1.02189]
[1754252566532,2.32068651,3488.7,3488.6,1.47299]
[1754252566729,1.517,3488.7,3488.6,1.47299]
[1754252567728,1.8372,3488.7,3488.6,0.78949]
[1754252567926,1.8372,3488.7,3488.6,0.2162]
[1754252568229,1.8372,3488.6,3488.5,0.57331]
[1754252568430,1.8372,3488.6,3488.5,1.09531]
[1754252568926,3.584772,3488.7,3488.3,1.24064]
[1754252568927,0.7441,3488.4,3488.3,1.24064]
[1754252569234,1.8372,3488.4,3488.3,1.47304]
[1754252570525,5.421972,3488.4,3488.3,1.47304]
[1754252575436,3.584772,3488.4,3488.3,4.68084]
[1754252576237,3.886872,3488.4,3488.3,4.68084]
[1754252577842,5.421972,3488.4,3488.3,1.47304]
[1754252579043,0.2173,3488.2,3488.1,0.57338]
[1754252579344,1.8372,3488.2,3488.1,0.57338]
[1754252579540,1.8372,3488.2,3488.1,0.78958]
[1754252580240,5.421972,3488.2,3488.1,0.78958]
[1754252580441,5.421972,3488.2,3488.1,1.09538]
[1754252581741,4.328872,3488.2,3487.9,3.78121]
[1754252582040,1.8372,3488.0,3487.9,1.09541]
[1754252582241,1.8372,3488.0,3487.9,1.24071]
[1754252582842,1.8372,3488.0,3487.9,4.68091]
[1754252584249,3.584772,3488.2,3487.9,4.68091]
[1754252584446,1.517,3488.1,3488.0,0.8997]
[1754252584646,1.8372,3488.1,3488.0,0.8997]
[1754252585144,5.421972,3488.1,3488.0,0.8997]
[1754252587855,5.421972,3488.1,3488.0,0.6673]
[1754252588056,5.421972,3488.1,3488.0,0.522]
[1754252588957,5.421972,3488.1,3488.0,0.6673]
[1754252590351,1.3664,3488.0,3487.9,0.57341]
[1754252590554,1.8372,3488.0,3487.9,0.57341]
[1754252590953,1.8372,3488.0,3487.9,1.09541]
[1754252591155,1.8372,3488.0,3487.9,1.47311]
[1754252593355,0.3021,3488.0,3487.9,1.47311]
[1754252594046,3.584772,3488.1,3487.9,1.47311]
[1754252594252,3.911172,3488.1,3488.0,4.11794647]
[1754252594552,3.584772,3488.1,3488.0,4.11794647]
[1754252595154,3.911172,3488.1,3488.0,4.11794647]
[1754252596952,3.584772,3488.1,3488.0,4.11794647]
[1754252604660,3.911172,3488.1,3488.0,4.11794647]
[1754252608365,4.371672,3488.1,3488.0,4.11794647]
[1754252608569,5.407572,3488.1,3488.0,4.11794647]
[1754252608755,1.0479,3488.0,3487.9,0.57341]
[1754252609064,1.8228,3488.0,3487.9,1.23731]
[1754252610168,5.407572,3488.0,3487.9,1.23731]
[1754252610659,4.632672,3488.0,3487.9,0.78821]
[1754252610865,5.407572,3488.0,3487.9,1.23731]
[1754252611167,5.407572,3488.0,3487.9,1.46941]
[1754252611466,5.407572,3488.0,3487.9,1.23731]
[1754252612568,5.407572,3488.0,3487.8,3.78122]
[1754252612770,5.407572,3488.0,3487.4,0.5735]
[1754252612771,1.8228,3487.9,3487.4,0.5735]
[1754252613070,1.8228,3487.5,3487.4,0.5735]
[1754252613267,0.4061,3487.1,3487.0,4.12409949]
[1754252613469,1.8228,3487.1,3487.0,4.12409949]
[1754252613666,1.8228,3487.1,3487.0,0.57356]
[1754252615371,5.407572,3487.1,3487.0,0.57356]
[1754252615669,5.407572,3487.1,3487.0,0.78836]
[1754252615862,5.407572,3487.1,3487.0,1.55856]
[1754252616971,5.407572,3487.1,3487.0,1.85636]
[1754252618764,5.407572,3487.1,3487.0,0.78836]
[1754252618965,5.407572,3487.1,3487.0,0.57356]
[1754252619966,5.407572,3487.1,3487.0,1.09246]
[1754252620372,5.407572,3487.1,3487.0,0.78836]
[1754252620976,5.407572,3487.1,3487.0,1.85636]
[1754252625974,2.990752,3487.1,3487.0,21.43236]
[1754252627967,1.964952,3487.1,3487.0,21.43236]
[1754252628165,0.4487,3487.2,3487.0,0.7807]
[1754252628368,0.4487,3487.5,3487.4,0.57349]
[1754252628673,1.3468,3487.5,3487.4,0.57349]
[1754252628874,1.7955,3487.5,3487.4,0.57349]
[1754252629378,1.7955,3487.4,3487.3,0.57351]
[1754252631672,5.380272,3487.4,3487.3,0.57351]
[1754252642079,1.0632,3487.3,3486.9,4.24022088]
[1754252642284,1.7955,3487.0,3486.9,1.03242088]
[1754252643287,1.7955,3487.0,3486.9,1.56022088]
[1754252643485,1.7955,3487.0,3486.9,2.34822088]
[1754252644288,6.792572,3487.4,3486.9,2.34822088]
[1754252644289,6.792572,3487.4,3486.9,4.25446735]
[1754252644485,5.380272,3487.4,3487.3,1.88931]
[1754252649491,5.380272,3487.4,3487.3,0.57351]
[1754252650086,5.380272,3487.4,3487.3,1.10131]
[1754252650287,5.380272,3487.4,3487.3,1.88931]
[1754252660292,0.7751,3487.3,3487.1,0.57353]
[1754252660598,1.8105,3487.2,3487.1,1.08663]
[1754252660891,1.8105,3487.2,3487.1,1.55743]
[1754252661294,1.8105,3487.2,3487.1,1.86503]
[1754252662090,1.8105,3487.2,3487.1,0.79093]
[1754252662492,1.8105,3487.2,3487.1,0.57353]
[1754252665212,5.395272,3487.2,3487.1,0.57353]
[1754252666512,5.395272,3487.2,3487.1,1.08663]
[1754252668413,5.395272,3487.2,3487.1,1.55743]
[1754252669207,5.395272,3487.2,3487.1,0.57353]
[1754252669402,5.395272,3487.2,3487.1,1.08663]
[1754252670014,5.395272,3487.2,3487.1,1.55743]
[1754252670209,5.395272,3487.2,3487.1,1.86503]
[1754252676819,3.902772,3487.2,3487.1,1.86503]
[1754252677419,3.902772,3487.2,3487.1,5.08707647]
[1754252677720,4.611372,3487.2,3487.1,1.86503]
[1754252678020,5.395272,3487.2,3487.1,1.86503]
[1754252678515,3.584772,3487.2,3487.1,5.08707647]
[1754252679321,3.902772,3487.2,3487.1,5.08707647]
[1754252679522,3.584772,3487.2,3487.1,5.08707647]
[1754252682131,0.3268,3487.8,3487.5,1.86498]
[1754252682429,0.318,3487.8,3487.7,7.72134647]
[1754252683223,0.3268,3488.0,3487.8,0.57343]
[1754252683421,1.4925,3488.0,3487.9,0.525]
[1754252683627,0.5068,3488.0,3487.9,1.2915]
[1754252683827,1.8211,3488.3,3488.2,1.3206]
[1754252684030,1.0318,3488.6,3488.5,0.5092]
[1754252684228,1.0213,3488.6,3488.5,0.8327]
[1754252684526,0.8175,3488.9,3488.8,0.8327]
[1754252684827,1.5048,3488.9,3488.8,1.3206]
[1754252685222,1.8088,3488.9,3488.8,1.3206]
[1754252685927,1.8088,3488.9,3488.8,1.89385]
[1754252686126,1.8088,3488.9,3488.8,1.3206]
[1754252686327,5.393572,3488.9,3488.8,1.015]
[1754252687828,5.393572,3488.9,3488.8,1.3206]
[1754252688230,3.888772,3488.9,3488.8,4.54264647]
[1754252688528,5.393572,3488.9,3488.8,1.3206]
[1754252691638,5.079072,3488.9,3488.8,4.54264647]
[1754252691836,5.393572,3488.9,3488.8,4.54264647]
[1754252692235,5.393572,3488.9,3488.8,1.3206]
[1754252692538,1.8088,3488.8,3488.7,0.57327]
[1754252692939,1.8088,3488.8,3488.7,1.58827]